[Event "*** Titled Tuesday Blitz"]
[Site "Chess.com"]
[Date "2020.05.12"]
[Round "7"]
[White "SpasKozhuharov"]
[Black "SahaNeelash"]
[Result "1-0"]
[WhiteElo "2692"]
[BlackElo "2541"]
[TimeControl "180+1"]
[EndTime "11:17:22 PDT"]
[Termination "SpasKozhuharov won by checkmate"]

1. c4 {[%clk 0:02:45.4]} 1... e6 {[%clk 0:02:58]} 2. Nc3 {[%clk 0:02:45.2]} 2...
d5 {[%clk 0:02:55.4]} 3. d4 {[%clk 0:02:45.6]} 3... Nf6 {[%clk 0:02:54.5]} 4.
Nf3 {[%clk 0:02:46]} 4... Be7 {[%clk 0:02:53.4]} 5. Bf4 {[%clk 0:02:46.5]} 5...
O-O {[%clk 0:02:53]} 6. e3 {[%clk 0:02:47]} 6... c6 {[%clk 0:02:53.2]} 7. Qc2
{[%clk 0:02:40.2]} 7... Nbd7 {[%clk 0:02:45.3]} 8. h3 {[%clk 0:02:39.5]} 8... b6
{[%clk 0:02:40.7]} 9. cxd5 {[%clk 0:02:35.3]} 9... exd5 {[%clk 0:02:38.1]} 10.
Bd3 {[%clk 0:02:32.7]} 10... Bb7 {[%clk 0:02:38]} 11. O-O {[%clk 0:02:32.5]}
11... h6 {[%clk 0:02:38.2]} 12. Rfd1 {[%clk 0:02:31.6]} 12... Rc8 {[%clk
0:02:38.1]} 13. Qe2 {[%clk 0:02:27.8]} 13... Nb8 {[%clk 0:02:21]} 14. Rac1
{[%clk 0:02:24.9]} 14... Bd6 {[%clk 0:02:20.6]} 15. Ne5 {[%clk 0:02:22.7]} 15...
Qe7 {[%clk 0:02:20.8]} 16. a3 {[%clk 0:02:21.7]} 16... Rfd8 {[%clk 0:02:19.4]}
17. b4 {[%clk 0:02:20.8]} 17... Nbd7 {[%clk 0:02:16.9]} 18. Bf5 {[%clk
0:02:19.7]} 18... g6 {[%clk 0:01:52.4]} 19. Nxd7 {[%clk 0:02:14.7]} 19... Nxd7
{[%clk 0:01:53.3]} 20. Bxd7 {[%clk 0:02:10.4]} 20... Rxd7 {[%clk 0:01:54.2]} 21.
Bxh6 {[%clk 0:02:09.8]} 21... Qh4 {[%clk 0:01:52.5]} 22. Qg4 {[%clk 0:02:05.7]}
22... Qxg4 {[%clk 0:01:46.3]} 23. hxg4 {[%clk 0:02:06.6]} 23... Re8 {[%clk
0:01:45]} 24. Bg5 {[%clk 0:01:53.8]} 24... Kg7 {[%clk 0:01:43.8]} 25. Bf4 {[%clk
0:01:43.2]} 25... Bxf4 {[%clk 0:01:43]} 26. exf4 {[%clk 0:01:44.1]} 26... Rde7
{[%clk 0:01:43.4]} 27. f3 {[%clk 0:01:42.4]} 27... Bc8 {[%clk 0:01:40]} 28. g5
{[%clk 0:01:39.8]} 28... Bd7 {[%clk 0:01:37.3]} 29. Kf2 {[%clk 0:01:38.8]} 29...
Rh8 {[%clk 0:01:17.8]} 30. Re1 {[%clk 0:01:36.4]} 30... Be6 {[%clk 0:01:17.8]}
31. Rh1 {[%clk 0:01:27.6]} 31... Rxh1 {[%clk 0:01:14.4]} 32. Rxh1 {[%clk
0:01:26.6]} 32... Rc7 {[%clk 0:01:14.9]} 33. Rc1 {[%clk 0:01:23]} 33... c5
{[%clk 0:01:10.8]} 34. dxc5 {[%clk 0:01:15]} 34... bxc5 {[%clk 0:01:11.7]} 35.
Nb5 {[%clk 0:01:15.1]} 35... Rd7 {[%clk 0:01:06.7]} 36. bxc5 {[%clk 0:01:13.2]}
36... d4 {[%clk 0:01:04.4]} 37. c6 {[%clk 0:01:13.5]} 37... Rd5 {[%clk
0:01:04.4]} 38. Nxa7 {[%clk 0:01:11.1]} 38... Ra5 {[%clk 0:01:03.9]} 39. c7
{[%clk 0:00:58.8]} 39... Rxa7 {[%clk 0:01:02.9]} 40. c8=Q {[%clk 0:00:59.2]}
40... Bxc8 {[%clk 0:01:03.1]} 41. Rxc8 {[%clk 0:01:00.1]} 41... Rxa3 {[%clk
0:01:02.9]} 42. Rd8 {[%clk 0:01:00.7]} 42... Ra2+ {[%clk 0:01:02.9]} 43. Kg3
{[%clk 0:00:57.6]} 43... Rd2 {[%clk 0:00:58.6]} 44. Kh3 {[%clk 0:00:57.6]} 44...
Kh7 {[%clk 0:00:51.7]} 45. g4 {[%clk 0:00:56.4]} 45... Kg7 {[%clk 0:00:42]} 46.
f5 {[%clk 0:00:56.5]} 46... gxf5 {[%clk 0:00:30]} 47. gxf5 {[%clk 0:00:57.4]}
47... d3 {[%clk 0:00:25.6]} 48. Kg4 {[%clk 0:00:41.3]} 48... Rg2+ {[%clk
0:00:24]} 49. Kf4 {[%clk 0:00:40.9]} 49... d2 {[%clk 0:00:23.8]} 50. Rd7 {[%clk
0:00:35.3]} 50... Kf8 {[%clk 0:00:15.2]} 51. f6 {[%clk 0:00:35.1]} 51... Ke8
{[%clk 0:00:11.9]} 52. Rd6 {[%clk 0:00:32.1]} 52... Rf2 {[%clk 0:00:11.3]} 53.
Ke3 {[%clk 0:00:27.7]} 53... Rg2 {[%clk 0:00:11.5]} 54. f4 {[%clk 0:00:26]}
54... Rg3+ {[%clk 0:00:10.6]} 55. Kxd2 {[%clk 0:00:22.7]} 55... Kf8 {[%clk
0:00:11]} 56. Rd8# {[%clk 0:00:20.3]} 1-0

[Event "*** Titled Tuesday Blitz"]
[Site "Chess.com"]
[Date "2020.05.12"]
[Round "7"]
[White "manitodeplomo"]
[Black "MateSchmate"]
[Result "1-0"]
[WhiteElo "2615"]
[BlackElo "2427"]
[TimeControl "180+1"]
[EndTime "11:17:22 PDT"]
[Termination "manitodeplomo won by resignation"]

1. d4 {[%clk 0:03:00]} 1... c5 {[%clk 0:02:59.9]} 2. d5 {[%clk 0:02:59.5]} 2...
e5 {[%clk 0:02:59.1]} 3. c4 {[%clk 0:02:53.6]} 3... d6 {[%clk 0:02:59.2]} 4. Nc3
{[%clk 0:02:53.5]} 4... g6 {[%clk 0:02:59.4]} 5. e4 {[%clk 0:02:52]} 5... Bg7
{[%clk 0:02:59.3]} 6. h4 {[%clk 0:02:46.1]} 6... h6 {[%clk 0:02:59]} 7. h5
{[%clk 0:02:46.1]} 7... g5 {[%clk 0:02:59.3]} 8. g4 {[%clk 0:02:45.9]} 8... a6
{[%clk 0:02:59]} 9. a3 {[%clk 0:02:42.1]} 9... Ne7 {[%clk 0:02:55]} 10. b4
{[%clk 0:02:41]} 10... Nd7 {[%clk 0:02:51.1]} 11. f3 {[%clk 0:02:40.2]} 11... a5
{[%clk 0:02:50.5]} 12. Bd2 {[%clk 0:02:30.7]} 12... axb4 {[%clk 0:02:47.7]} 13.
axb4 {[%clk 0:02:31.6]} 13... Rxa1 {[%clk 0:02:47.9]} 14. Qxa1 {[%clk
0:02:30.5]} 14... cxb4 {[%clk 0:02:48.8]} 15. Nb5 {[%clk 0:02:30.1]} 15... Nc5
{[%clk 0:02:00.6]} 16. Bxb4 {[%clk 0:02:25.1]} 16... O-O {[%clk 0:02:00.1]} 17.
Bxc5 {[%clk 0:02:10.4]} 17... dxc5 {[%clk 0:02:01]} 18. Qa7 {[%clk 0:02:10.2]}
18... Bd7 {[%clk 0:01:48.6]} 19. Rh2 {[%clk 0:02:04.5]} 19... Nc8 {[%clk
0:01:37.5]} 20. Qxc5 {[%clk 0:01:53.1]} 20... Qa5+ {[%clk 0:01:32.8]} 21. Rd2
{[%clk 0:01:52.4]} 21... Nb6 {[%clk 0:01:18.3]} 22. Qa3 {[%clk 0:01:40.7]} 22...
Ra8 {[%clk 0:01:08.2]} 23. Qxa5 {[%clk 0:01:32.5]} 23... Rxa5 {[%clk 0:01:09.1]}
24. Bd3 {[%clk 0:01:03]} 24... Bf8 {[%clk 0:01:06]} 25. Ke2 {[%clk 0:00:47.2]}
25... Nxc4 {[%clk 0:01:05.6]} 26. Bxc4 {[%clk 0:00:46.8]} 26... Bxb5 {[%clk
0:01:05.6]} 27. Bxb5 {[%clk 0:00:45.9]} 27... Rxb5 {[%clk 0:01:06.5]} 28. Nh3
{[%clk 0:00:41.5]} 28... Bc5 {[%clk 0:00:54.7]} 29. Nf2 {[%clk 0:00:38]} 29...
Bxf2 {[%clk 0:00:51.8]} 30. Kxf2 {[%clk 0:00:36.3]} 30... Kf8 {[%clk 0:00:52.2]}
31. d6 {[%clk 0:00:31.8]} 31... Ke8 {[%clk 0:00:50.9]} 32. d7+ {[%clk
0:00:32.1]} 32... Kd8 {[%clk 0:00:51.5]} 33. Rd6 {[%clk 0:00:32.5]} 33... Rb2+
{[%clk 0:00:46.2]} 34. Kg3 {[%clk 0:00:32.5]} 34... b5 {[%clk 0:00:46.7]} 35.
Rxh6 {[%clk 0:00:32.5]} 35... Kxd7 {[%clk 0:00:47.3]} 36. Rb6 {[%clk 0:00:28.8]}
36... Kc7 {[%clk 0:00:42.4]} 37. Rf6 {[%clk 0:00:26.5]} 37... Rb1 {[%clk
0:00:40]} 38. Rxf7+ {[%clk 0:00:25.5]} 38... Kc6 {[%clk 0:00:39.3]} 39. Rf5
{[%clk 0:00:20.4]} 39... b4 {[%clk 0:00:37.1]} 40. Rxg5 {[%clk 0:00:14.6]} 40...
b3 {[%clk 0:00:36.5]} 41. Rg6+ {[%clk 0:00:12.5]} 41... Kc5 {[%clk 0:00:33.7]}
42. Rg8 {[%clk 0:00:12.8]} 42... b2 {[%clk 0:00:33.9]} 43. Rc8+ {[%clk
0:00:11.3]} 43... Kd6 {[%clk 0:00:31.3]} 44. Rb8 {[%clk 0:00:10.1]} 44... Rg1+
{[%clk 0:00:31.3]} 45. Kh4 {[%clk 0:00:10.2]} 45... b1=Q {[%clk 0:00:32.2]} 46.
Rxb1 {[%clk 0:00:10.1]} 46... Rxb1 {[%clk 0:00:33.1]} 47. Kg5 {[%clk 0:00:11]}
47... Ke6 {[%clk 0:00:33.5]} 48. Kg6 {[%clk 0:00:10.1]} 48... Rf1 {[%clk
0:00:22.6]} 49. h6 {[%clk 0:00:09.8]} 49... Rxf3 {[%clk 0:00:22.1]} 50. h7
{[%clk 0:00:09.9]} 50... Rf8 {[%clk 0:00:19.2]} 51. g5 {[%clk 0:00:07.6]} 51...
Ke7 {[%clk 0:00:14.6]} 52. Kh6 {[%clk 0:00:06.2]} 52... Rf4 {[%clk 0:00:04.9]}
53. h8=Q {[%clk 0:00:05.5]} 53... Rh4+ {[%clk 0:00:04.5]} 54. Kg7 {[%clk
0:00:05.8]} 54... Rxh8 {[%clk 0:00:04.8]} 55. Kxh8 {[%clk 0:00:06.7]} 55... Kf7
{[%clk 0:00:05.3]} 56. Kh7 {[%clk 0:00:07.2]} 56... Ke6 {[%clk 0:00:05.2]} 57.
g6 {[%clk 0:00:07.4]} 1-0

[Event "*** Titled Tuesday Blitz"]
[Site "Chess.com"]
[Date "2020.05.12"]
[Round "7"]
[White "Colombiano07"]
[Black "Oligan22"]
[Result "0-1"]
[WhiteElo "2194"]
[BlackElo "2383"]
[TimeControl "180+1"]
[EndTime "11:17:24 PDT"]
[Termination "Oligan22 won by resignation"]

1. d4 {[%clk 0:02:16.4]} 1... d5 {[%clk 0:02:58]} 2. Nf3 {[%clk 0:02:10.7]} 2...
a6 {[%clk 0:02:57.2]} 3. e3 {[%clk 0:02:06.1]} 3... Bg4 {[%clk 0:02:45.1]} 4.
Bd3 {[%clk 0:02:07]} 4... e6 {[%clk 0:02:42.5]} 5. Nbd2 {[%clk 0:02:07.5]} 5...
c5 {[%clk 0:02:42.2]} 6. c3 {[%clk 0:02:06.6]} 6... Nc6 {[%clk 0:02:42.1]} 7. h3
{[%clk 0:02:06.4]} 7... Bh5 {[%clk 0:02:41]} 8. O-O {[%clk 0:02:06.5]} 8... Nf6
{[%clk 0:02:41.1]} 9. Qe2 {[%clk 0:02:07]} 9... Be7 {[%clk 0:02:31.7]} 10. dxc5
{[%clk 0:02:06.3]} 10... Bxc5 {[%clk 0:02:32.6]} 11. e4 {[%clk 0:02:06.3]} 11...
Ne5 {[%clk 0:02:12.6]} 12. exd5 {[%clk 0:01:51.1]} 12... Nxd3 {[%clk 0:02:11.8]}
13. Qxd3 {[%clk 0:01:48.8]} 13... Qxd5 {[%clk 0:02:09.8]} 14. Qxd5 {[%clk
0:01:48.1]} 14... Nxd5 {[%clk 0:02:10.7]} 15. Nb3 {[%clk 0:01:46.6]} 15... Ba7
{[%clk 0:02:09.2]} 16. g4 {[%clk 0:01:43.8]} 16... Bg6 {[%clk 0:02:08.9]} 17.
Ne5 {[%clk 0:01:44.7]} 17... O-O {[%clk 0:01:50.6]} 18. c4 {[%clk 0:01:40.3]}
18... Nb4 {[%clk 0:01:47.6]} 19. Bd2 {[%clk 0:01:40.2]} 19... Nc2 {[%clk
0:01:32.3]} 20. Nxg6 {[%clk 0:01:39.5]} 20... hxg6 {[%clk 0:01:29.5]} 21. Rac1
{[%clk 0:01:38.3]} 21... Nd4 {[%clk 0:01:28.2]} 22. Nxd4 {[%clk 0:01:34.7]}
22... Bxd4 {[%clk 0:01:29.1]} 23. Bc3 {[%clk 0:01:34.5]} 23... Rfd8 {[%clk
0:01:27.5]} 24. Rfd1 {[%clk 0:01:33.9]} 24... Bxc3 {[%clk 0:01:27]} 25. Rxd8+
{[%clk 0:01:34.8]} 25... Rxd8 {[%clk 0:01:27.2]} 26. Rxc3 {[%clk 0:01:35.7]}
26... Kf8 {[%clk 0:01:20.4]} 27. Kg2 {[%clk 0:01:33]} 27... Ke7 {[%clk
0:01:20.1]} 28. Kf3 {[%clk 0:01:33.5]} 28... g5 {[%clk 0:01:12.9]} 29. Ke3
{[%clk 0:01:33.6]} 29... f5 {[%clk 0:01:10.8]} 30. b4 {[%clk 0:01:19.2]} 30...
Kf6 {[%clk 0:01:08.4]} 31. a4 {[%clk 0:01:16.3]} 31... Ke5 {[%clk 0:00:37.3]}
32. c5 {[%clk 0:01:03.9]} 32... f4+ {[%clk 0:00:33.6]} 33. Ke2 {[%clk
0:00:53.7]} 33... Rc8 {[%clk 0:00:17.2]} 34. f3 {[%clk 0:00:53.1]} 34... Kd5
{[%clk 0:00:16.3]} 35. Kd3 {[%clk 0:00:52.8]} 35... e5 {[%clk 0:00:16]} 36. Rc4
{[%clk 0:00:53.1]} 36... Rh8 {[%clk 0:00:12]} 37. b5 {[%clk 0:00:49.7]} 37...
axb5 {[%clk 0:00:12.9]} 38. axb5 {[%clk 0:00:50.6]} 38... Rxh3 {[%clk
0:00:13.5]} 39. Rc1 {[%clk 0:00:43.6]} 39... Rxf3+ {[%clk 0:00:12.9]} 40. Ke2
{[%clk 0:00:44.5]} 40... Rh3 {[%clk 0:00:12.9]} 41. c6 {[%clk 0:00:43.6]} 41...
bxc6 {[%clk 0:00:13.8]} 42. bxc6 {[%clk 0:00:44.1]} 42... Rh8 {[%clk 0:00:14.1]}
43. c7 {[%clk 0:00:44.7]} 43... Rc8 {[%clk 0:00:14.7]} 44. Kd3 {[%clk
0:00:44.8]} 44... e4+ {[%clk 0:00:14.5]} 45. Kd2 {[%clk 0:00:44.4]} 45... Kd6
{[%clk 0:00:13]} 46. Rc4 {[%clk 0:00:42.9]} 46... Kd5 {[%clk 0:00:13.2]} 47. Rc1
{[%clk 0:00:42.5]} 47... Kd6 {[%clk 0:00:11.9]} 48. Rc4 {[%clk 0:00:42.3]} 48...
Ke5 {[%clk 0:00:11.7]} 49. Rc5+ {[%clk 0:00:42.2]} 49... Kd4 {[%clk 0:00:12]}
50. Rc6 {[%clk 0:00:41]} 50... f3 {[%clk 0:00:11.9]} 51. Rd6+ {[%clk 0:00:36.7]}
51... Ke5 {[%clk 0:00:12]} 52. Rd7 {[%clk 0:00:37.2]} 52... Kf4 {[%clk
0:00:11.2]} 53. Rxg7 {[%clk 0:00:35.5]} 53... e3+ {[%clk 0:00:11.3]} 54. Kd3
{[%clk 0:00:35.6]} 54... e2 {[%clk 0:00:09.3]} 55. Rf7+ {[%clk 0:00:33.1]} 55...
Kxg4 {[%clk 0:00:09.4]} 56. Kd2 {[%clk 0:00:33.7]} 56... Kg3 {[%clk 0:00:09.1]}
57. Ke1 {[%clk 0:00:33.5]} 57... g4 {[%clk 0:00:09.5]} 58. Rh7 {[%clk
0:00:26.7]} 58... Kg2 {[%clk 0:00:09.2]} 59. Rf7 {[%clk 0:00:25.2]} 59... Rxc7
{[%clk 0:00:07.5]} 60. Rxc7 {[%clk 0:00:24.7]} 60... f2+ {[%clk 0:00:08.1]} 61.
Kxe2 {[%clk 0:00:24.4]} 61... f1=Q+ {[%clk 0:00:09]} 62. Ke3 {[%clk 0:00:24.6]}
62... Qf3+ {[%clk 0:00:09]} 0-1

[Event "*** Titled Tuesday Blitz"]
[Site "Chess.com"]
[Date "2020.05.12"]
[Round "7"]
[White "S2PAc"]
[Black "BakaPG"]
[Result "1/2-1/2"]
[WhiteElo "2778"]
[BlackElo "2660"]
[TimeControl "180+1"]
[EndTime "11:17:28 PDT"]
[Termination "Game drawn - insufficient material"]

1. d4 {[%clk 0:03:00.9]} 1... d5 {[%clk 0:02:59]} 2. Nf3 {[%clk 0:02:58.3]} 2...
Nf6 {[%clk 0:02:58.3]} 3. g3 {[%clk 0:02:58.6]} 3... Bg4 {[%clk 0:02:57]} 4. Bg2
{[%clk 0:02:58.8]} 4... Nbd7 {[%clk 0:02:57]} 5. O-O {[%clk 0:02:59.3]} 5... e6
{[%clk 0:02:57.3]} 6. c4 {[%clk 0:02:59.8]} 6... c6 {[%clk 0:02:56.5]} 7. Nc3
{[%clk 0:03:00.4]} 7... Be7 {[%clk 0:02:55.7]} 8. h3 {[%clk 0:02:59.9]} 8... Bh5
{[%clk 0:02:54.9]} 9. Qb3 {[%clk 0:02:59.9]} 9... Qb6 {[%clk 0:02:50.2]} 10. c5
{[%clk 0:03:00]} 10... Qc7 {[%clk 0:02:50.1]} 11. Bf4 {[%clk 0:02:59.2]} 11...
Qc8 {[%clk 0:02:50]} 12. g4 {[%clk 0:02:51.7]} 12... Bg6 {[%clk 0:02:49.1]} 13.
Nd2 {[%clk 0:02:52.3]} 13... O-O {[%clk 0:02:38.7]} 14. e4 {[%clk 0:02:51.3]}
14... dxe4 {[%clk 0:02:34.8]} 15. Ndxe4 {[%clk 0:02:50.1]} 15... Nd5 {[%clk
0:02:33.5]} 16. Nxd5 {[%clk 0:02:17.9]} 16... exd5 {[%clk 0:02:31.8]} 17. Nd6
{[%clk 0:02:17.8]} 17... Bxd6 {[%clk 0:02:31.7]} 18. Bxd6 {[%clk 0:02:18.7]}
18... Re8 {[%clk 0:02:28.4]} 19. Rfe1 {[%clk 0:02:19.2]} 19... b6 {[%clk
0:02:19]} 20. cxb6 {[%clk 0:02:09]} 20... axb6 {[%clk 0:02:16.5]} 21. Rac1
{[%clk 0:01:55.1]} 21... Be4 {[%clk 0:02:01.8]} 22. f3 {[%clk 0:01:43.5]} 22...
Bg6 {[%clk 0:02:00.1]} 23. Rxe8+ {[%clk 0:01:42.8]} 23... Qxe8 {[%clk 0:02:00]}
24. Rxc6 {[%clk 0:01:43.3]} 24... Qe1+ {[%clk 0:01:40.6]} 25. Kh2 {[%clk
0:01:43.2]} 25... h5 {[%clk 0:01:32.4]} 26. Bg3 {[%clk 0:01:42.4]} 26... Qa5
{[%clk 0:01:28.3]} 27. a3 {[%clk 0:01:35.4]} 27... hxg4 {[%clk 0:01:26.1]} 28.
hxg4 {[%clk 0:01:36.3]} 28... Re8 {[%clk 0:01:21.2]} 29. Qc3 {[%clk 0:00:47.6]}
29... Re2 {[%clk 0:01:12.3]} 30. Qxa5 {[%clk 0:00:36.8]} 30... bxa5 {[%clk
0:01:11.7]} 31. Ra6 {[%clk 0:00:27.7]} 31... Rxb2 {[%clk 0:01:08.9]} 32. Rxa5
{[%clk 0:00:27.9]} 32... Nb6 {[%clk 0:01:08.1]} 33. Bf4 {[%clk 0:00:21.1]} 33...
f6 {[%clk 0:00:55.2]} 34. Kg3 {[%clk 0:00:21.1]} 34... Bf7 {[%clk 0:00:53.7]}
35. Bf1 {[%clk 0:00:16.6]} 35... g5 {[%clk 0:00:48.6]} 36. Bc7 {[%clk
0:00:08.8]} 36... Nc4 {[%clk 0:00:48.4]} 37. Ra8+ {[%clk 0:00:06.1]} 37... Kg7
{[%clk 0:00:47]} 38. Bxc4 {[%clk 0:00:05.5]} 38... dxc4 {[%clk 0:00:46.5]} 39.
Ba5 {[%clk 0:00:06.4]} 39... Rb3 {[%clk 0:00:44.5]} 40. Rd8 {[%clk 0:00:03.4]}
40... Rd3 {[%clk 0:00:40.9]} 41. Bb4 {[%clk 0:00:02.9]} 41... c3 {[%clk
0:00:40.8]} 42. Rc8 {[%clk 0:00:03]} 42... Bd5 {[%clk 0:00:34.3]} 43. Rxc3
{[%clk 0:00:03.5]} 43... Rxd4 {[%clk 0:00:31.1]} 44. Bc5 {[%clk 0:00:03.9]}
44... Ra4 {[%clk 0:00:29.9]} 45. Bb4 {[%clk 0:00:03.8]} 45... Ra7 {[%clk
0:00:25.6]} 46. Rd3 {[%clk 0:00:04.3]} 46... Be6 {[%clk 0:00:25]} 47. Rd6 {[%clk
0:00:04.3]} 47... Kf7 {[%clk 0:00:24.9]} 48. Bc5 {[%clk 0:00:04.7]} 48... Rd7
{[%clk 0:00:24.4]} 49. Rxd7+ {[%clk 0:00:04.2]} 49... Bxd7 {[%clk 0:00:24.6]}
50. Kf2 {[%clk 0:00:05.1]} 50... Ke6 {[%clk 0:00:24.6]} 51. Ke3 {[%clk 0:00:06]}
51... f5 {[%clk 0:00:22.9]} 52. Bb6 {[%clk 0:00:05.9]} 52... fxg4 {[%clk
0:00:21.1]} 53. fxg4 {[%clk 0:00:06.8]} 53... Kd5 {[%clk 0:00:20.7]} 54. Kf3
{[%clk 0:00:07.3]} 54... Kc4 {[%clk 0:00:19.9]} 55. Bd8 {[%clk 0:00:06.7]} 55...
Kb3 {[%clk 0:00:19.3]} 56. Be7 {[%clk 0:00:07.2]} 56... Ka4 {[%clk 0:00:18.7]}
57. Kg3 {[%clk 0:00:07.6]} 57... Kb3 {[%clk 0:00:18.6]} 58. Kf3 {[%clk
0:00:07.5]} 58... Ka4 {[%clk 0:00:18.4]} 59. Bxg5 {[%clk 0:00:08]} 59... Bxg4+
{[%clk 0:00:16.8]} 60. Kxg4 {[%clk 0:00:07.4]} 60... Kxa3 {[%clk 0:00:17.7]}
1/2-1/2

[Event "*** Titled Tuesday Blitz"]
[Site "Chess.com"]
[Date "2020.05.12"]
[Round "7"]
[White "druskacik"]
[Black "kleopl"]
[Result "1-0"]
[WhiteElo "2646"]
[BlackElo "2405"]
[TimeControl "180+1"]
[EndTime "11:17:31 PDT"]
[Termination "druskacik won on time"]

1. e4 {[%clk 0:03:00.9]} 1... d5 {[%clk 0:02:59.4]} 2. exd5 {[%clk 0:03:00.5]}
2... Qxd5 {[%clk 0:03:00.3]} 3. Nc3 {[%clk 0:02:59]} 3... Qd6 {[%clk 0:03:00.6]}
4. d4 {[%clk 0:02:58.5]} 4... Nf6 {[%clk 0:02:59.8]} 5. Nf3 {[%clk 0:02:59.2]}
5... c6 {[%clk 0:03:00.1]} 6. Ne5 {[%clk 0:02:58.7]} 6... Nbd7 {[%clk
0:02:59.9]} 7. f4 {[%clk 0:02:58.4]} 7... g6 {[%clk 0:02:59.8]} 8. g4 {[%clk
0:02:57.9]} 8... Bg7 {[%clk 0:02:57.5]} 9. Bg2 {[%clk 0:02:58.3]} 9... O-O
{[%clk 0:02:57.3]} 10. O-O {[%clk 0:02:58.9]} 10... Nb6 {[%clk 0:02:52.8]} 11.
g5 {[%clk 0:02:48.1]} 11... Nfd7 {[%clk 0:02:49.9]} 12. Ne4 {[%clk 0:02:47.8]}
12... Qc7 {[%clk 0:02:49.9]} 13. c3 {[%clk 0:02:39.4]} 13... f6 {[%clk
0:02:40.9]} 14. Qb3+ {[%clk 0:02:36.6]} 14... Nd5 {[%clk 0:02:38.8]} 15. gxf6
{[%clk 0:02:34.2]} 15... exf6 {[%clk 0:02:35.7]} 16. Nxd7 {[%clk 0:02:27.8]}
16... Bxd7 {[%clk 0:02:32.7]} 17. Nc5 {[%clk 0:02:27.1]} 17... Kh8 {[%clk
0:01:51.3]} 18. Qxb7 {[%clk 0:02:21.2]} 18... Qxb7 {[%clk 0:01:50.4]} 19. Nxb7
{[%clk 0:02:22.1]} 19... Rab8 {[%clk 0:01:35.8]} 20. Nc5 {[%clk 0:02:20.5]}
20... Bf5 {[%clk 0:01:32.8]} 21. a4 {[%clk 0:01:57.4]} 21... Rfe8 {[%clk
0:01:31.5]} 22. Ra3 {[%clk 0:01:55.9]} 22... Re2 {[%clk 0:01:27.6]} 23. Rb3
{[%clk 0:01:53.1]} 23... Rxb3 {[%clk 0:01:19]} 24. Nxb3 {[%clk 0:01:54]} 24...
Bc2 {[%clk 0:01:16.1]} 25. Nc5 {[%clk 0:01:52.3]} 25... Bf8 {[%clk 0:01:14.3]}
26. Bf3 {[%clk 0:01:47.1]} 26... Re8 {[%clk 0:01:05.5]} 27. a5 {[%clk
0:01:27.2]} 27... Bxc5 {[%clk 0:00:56.4]} 28. dxc5 {[%clk 0:01:27.1]} 28... Be4
{[%clk 0:00:55.9]} 29. Be2 {[%clk 0:01:18.4]} 29... f5 {[%clk 0:00:52.5]} 30.
Kf2 {[%clk 0:01:17.5]} 30... Rb8 {[%clk 0:00:46.9]} 31. Bc4 {[%clk 0:01:16]}
31... Kg7 {[%clk 0:00:46]} 32. Re1 {[%clk 0:01:11.6]} 32... Kf6 {[%clk
0:00:44.9]} 33. Re2 {[%clk 0:01:07]} 33... Rb7 {[%clk 0:00:42.9]} 34. Be3 {[%clk
0:01:03.3]} 34... Ke7 {[%clk 0:00:25.6]} 35. Rd2 {[%clk 0:00:59.7]} 35... Rd7
{[%clk 0:00:20.3]} 36. Rd1 {[%clk 0:00:54.1]} 36... Rb7 {[%clk 0:00:19.8]} 37.
Bc1 {[%clk 0:00:53.1]} 37... Rd7 {[%clk 0:00:19.3]} 38. Kg3 {[%clk 0:00:50.3]}
38... Rb7 {[%clk 0:00:18.9]} 39. Rd2 {[%clk 0:00:48.6]} 39... Kf6 {[%clk
0:00:18.6]} 40. Re2 {[%clk 0:00:48.1]} 40... Re7 {[%clk 0:00:15.8]} 41. Bd2
{[%clk 0:00:47.7]} 41... Rb7 {[%clk 0:00:14.4]} 42. Be1 {[%clk 0:00:47.7]} 42...
h6 {[%clk 0:00:13.4]} 43. h4 {[%clk 0:00:45.4]} 43... g5 {[%clk 0:00:12.4]} 44.
hxg5+ {[%clk 0:00:45.6]} 44... hxg5 {[%clk 0:00:13.3]} 45. fxg5+ {[%clk
0:00:46]} 45... Kxg5 {[%clk 0:00:13.7]} 46. Bd2+ {[%clk 0:00:39.1]} 46... Kf6
{[%clk 0:00:11.1]} 47. Bc1 {[%clk 0:00:34.5]} 47... Rg7+ {[%clk 0:00:10.7]} 48.
Kf2 {[%clk 0:00:34.7]} 48... Rg2+ {[%clk 0:00:10.7]} 49. Kf1 {[%clk 0:00:35]}
49... Rg4 {[%clk 0:00:08.6]} 50. Ba6 {[%clk 0:00:28.7]} 50... Rh4 {[%clk
0:00:07.9]} 51. Bd2 {[%clk 0:00:23.6]} 51... Rh1+ {[%clk 0:00:07.7]} 52. Kf2
{[%clk 0:00:23.8]} 52... Rb1 {[%clk 0:00:07.9]} 53. Be3 {[%clk 0:00:22.6]} 53...
Ke5 {[%clk 0:00:05.9]} 54. Bc4 {[%clk 0:00:21.1]} 54... Nxe3 {[%clk 0:00:04.3]}
55. Kxe3 {[%clk 0:00:20.3]} 55... f4+ {[%clk 0:00:04.5]} 56. Kf2 {[%clk
0:00:20.8]} 56... Kf5 {[%clk 0:00:04.5]} 57. Rd2 {[%clk 0:00:21]} 57... Rc1
{[%clk 0:00:03.4]} 58. Be2 {[%clk 0:00:20.9]} 58... Ke5 {[%clk 0:00:02.5]} 59.
Bf3 {[%clk 0:00:21.1]} 59... Bxf3 {[%clk 0:00:01.9]} 60. Kxf3 {[%clk 0:00:22]}
60... Rf1+ {[%clk 0:00:02.1]} 61. Rf2 {[%clk 0:00:21.9]} 61... Rxf2+ {[%clk
0:00:01.1]} 62. Kxf2 {[%clk 0:00:22.8]} 1-0